fUSD/lending_fUSD_20250106
["ID","MTS","AMOUNT","RATE_DAILY","PERIOD"]
[347910437,1736194253178,-1913960.42199726,0.000123,2]
[347910438,1736194253188,-9336872.13574479,0.000123,2]
[347910439,1736194253197,-1987049.46586171,0.000123,2]
[347910440,1736194253206,-5370.32573192,0.000123,2]
[347910441,1736194253215,-1352537.80432788,0.000123,2]
[347910442,1736194253225,-7514.96750327,0.000123,2]
[347910443,1736194253234,-4749597.82874121,0.000123,2]
[347910444,1736194253243,-20683565.8519717,0.000123,2]
[347910445,1736194253252,-2045644.36236018,0.000123,2]
[347910446,1736194253261,-2093659.2148279,0.000123,2]
[347910447,1736194253270,-202.8,0.000123,2]
[347910448,1736194253280,-202.8,0.000123,2]
[347910449,1736194253289,-1471883.82342613,0.000123,2]
[347910450,1736194253300,-2612180.48959258,0.000123,2]
[347910451,1736194253309,-4960054.81094856,0.000123,2]
[347910452,1736194253318,-4029147.68606684,0.000123,2]
[347910453,1736194253732,-801.42,9.999e-05,2]
[347910454,1736194253751,-222.62,9.999e-05,2]
[347910455,1736194253762,-150.42,0.0001,2]
[347910456,1736194253772,-500.0,0.00010547,2]
[347910457,1736194253782,-500.0,0.00010821,2]
[347910458,1736194253792,-500.0,0.00011095,2]
[347910459,1736194253802,-681.07,0.00011917,2]
[347910460,1736194253813,-648.35,0.00011917,2]
[347910461,1736194253823,-681.07,0.00012191,2]
[347910462,1736194253833,-648.35,0.00012191,2]
[347910463,1736194253842,-175518.97161532,0.000123,2]
[347910464,1736194253868,-151.0,0.0001,2]
[347910465,1736194253877,-173.73932117,0.000123,2]
[347910466,1736194253891,-92054.89641915,0.000123,2]
[347910491,1736194326456,171.054459,0.0002,120]
[347910494,1736194465347,4200.0,0.0002,120]
[347910673,1736195431611,-583.32405185,8.353e-05,2]
[347910674,1736195431669,-567.99594815,8.353e-05,2]
[347910675,1736195431680,-677.39497551,9.8e-05,2]
[347910676,1736195431689,-677.39497551,9.899e-05,2]
[347910677,1736195431698,-1600.0,9.97e-05,2]
[347910678,1736195431707,-169.64916404,9.973e-05,2]
[347910679,1736195431716,-500.0,9.973e-05,2]
[347910680,1736195431725,-500.0,9.973e-05,2]
[347910681,1736195431735,-500.0,9.999e-05,2]
[347910682,1736195431744,-500.0,9.999e-05,2]
[347910683,1736195431753,-500.0,9.999e-05,2]
[347910684,1736195431762,-500.0,9.999e-05,2]
[347910685,1736195431772,-500.0,9.999e-05,2]
[347910686,1736195431781,-500.0,9.999e-05,2]
[347910687,1736195431790,-500.0,9.999e-05,2]
[347910688,1736195431800,-310.57491473,9.999e-05,2]
[347910689,1736195431808,-500.0,9.999e-05,2]
[347910690,1736195431819,-259.15778582,9.999e-05,2]
[347910691,1736195431828,-500.0,9.999e-05,2]
[347910692,1736195431838,-500.0,9.999e-05,2]
[347910693,1736195431847,-500.0,9.999e-05,2]
[347910694,1736195431856,-500.0,9.999e-05,2]
[347910695,1736195431865,-500.0,9.999e-05,2]
[347910696,1736195431874,-500.0,9.999e-05,2]
[347910697,1736195431883,-500.0,9.999e-05,2]
[347910698,1736195431893,-500.0,9.999e-05,2]
[347910699,1736195431906,-500.0,9.999e-05,2]
[347910700,1736195431915,-500.0,9.999e-05,2]
[347910701,1736195431924,-500.0,9.999e-05,2]
[347910702,1736195431934,-637.68,9.999e-05,2]
[347910703,1736195431943,-500.0,9.999e-05,2]
[347910704,1736195431952,-701.98,9.999e-05,2]
[347910705,1736195431961,-500.0,9.999e-05,2]
[347910706,1736195431970,-500.0,9.999e-05,2]
[347910707,1736195431980,-500.0,9.999e-05,2]
[347910708,1736195431989,-500.0,9.999e-05,2]
[347910709,1736195431999,-500.0,9.999e-05,2]
[347910710,1736195432008,-500.0,9.999e-05,2]
[347910711,1736195432017,-500.0,9.999e-05,2]
[347910713,1736195432027,-500.0,9.999e-05,2]
[347910714,1736195432037,-131.10111833,9.999e-05,2]
[347910715,1736195432055,-368.89888167,9.999e-05,2]
[347910716,1736195432063,-465.20646658,9.999e-05,2]
[347910717,1736195432075,-889.20353342,9.999e-05,2]
[347910719,1736195432084,-500.0,9.999e-05,2]
[347910720,1736195432094,-500.0,9.999e-05,2]
[347910721,1736195432103,-151.0,0.0001,2]
[347910722,1736195432112,-21522.40646653,0.0001,2]
[347910723,1736195432129,-393.08355647,0.0001,2]
[347910724,1736195432161,-1349.84479405,0.0001,2]
[347910725,1736195432177,-2048.04370542,0.0001,2]
[347910726,1736195432189,-945.24598585,0.0001,2]
[347910727,1736195432210,-1017.94255646,0.0001,2]
[347910774,1736195437538,-275.41263819,9.999e-05,2]
[347910775,1736195437547,-1123.48923981,0.0001,2]
[347910776,1736195437561,-38690.92511149,0.0001,2]
[347910777,1736195437595,-641.43132382,0.0001,2]
[347910778,1736195437606,-595.80501752,0.0001,2]
[347910779,1736195437616,-463.4202856,0.0001,2]
[347910780,1736195437758,-467.05,0.0001,2]
[347910859,1736195439980,-500.0,9.999e-05,2]
[347910861,1736195439990,-1228.77262585,0.0001,2]
[347910864,1736195440001,-1925.36,0.0001,2]
[347910866,1736195440012,-10875.61489894,0.0001,2]
[347911124,1736195442626,-242.0,9.99e-05,2]
[347911126,1736195442635,-62.52999997,0.0001,2]
[347911128,1736195442647,-425.73802,0.0001,2]
[347911133,1736195442684,-470048.95729063,0.0001,2]
[347911135,1736195442694,-427519.8257296,0.0001,2]
[347911136,1736195442740,-1705.7809188,0.0001,2]
[347911137,1736195442798,-331596.09320843,0.0001,2]
[347911138,1736195442809,-32721.15975101,0.0001,2]
[347911139,1736195442820,-352.8,0.0001,2]
[347911141,1736195442831,-622.0032,0.0001,2]
[347911144,1736195442855,-524.04873333,0.0001,2]
[347911329,1736195445590,-5602.1528065,0.0001,2]
[347911331,1736195445649,-1000.93842479,0.0001,2]
[347911332,1736195445747,-178149.999999,0.0001,2]
[347911333,1736195445759,-5991.74168173,0.0001,2]
[347911334,1736195445769,-3949.3,0.0001,2]
[347911335,1736195445780,-404.880005,0.0001,2]
[347911336,1736195445791,-399490.57444086,0.0001,2]
[347911337,1736195445876,-330.04097945,0.0001,2]
[347911338,1736195445887,-355.64622195,0.0001,2]
[347911339,1736195445899,-978.71671701,0.0001,2]
[347911340,1736195445935,-780.60377805,0.0001,2]
[347911341,1736195445947,-3282.40982692,0.0001,2]
[347911342,1736195445958,-1947.7999999,0.0001,2]
[347911861,1736196468998,3677.35,0.00013,30]
[347911894,1736196631975,-429.20330285,8.219e-05,2]
[347911895,1736196632195,-664.54669715,8.219e-05,2]
[347911896,1736196632205,-150.0,9e-05,2]
[347911897,1736196632214,-1000.0,9.077e-05,2]
[347911898,1736196632226,-189.94,9.086e-05,2]
[347911899,1736196632236,-197.06280231,9.227e-05,2]
[347911900,1736196632246,-278.99,9.227e-05,2]
[347911901,1736196632256,-250.0,9.24e-05,2]
[347911902,1736196632266,-1571.94128903,9.249e-05,2]
[347911903,1736196632276,-250.0,9.25e-05,2]
[347911904,1736196632287,-150.0,9.314e-05,2]
[347911905,1736196632296,-150.0,9.698e-05,2]
[347911906,1736196632306,-150.0,9.803e-05,2]
[347911907,1736196632316,-150.0,9.863e-05,2]
[347911908,1736196632326,-4431.5864,9.9e-05,2]
[347911909,1736196632336,-5000.0,9.9e-05,2]
[347911910,1736196632348,-1000.0,9.9e-05,2]
[347911911,1736196632357,-1003.0983,9.9e-05,2]
[347911912,1736196632368,-1000.0,9.9e-05,2]
[347911913,1736196632379,-1000.0,9.9e-05,2]
[347911914,1736196632388,-746.0,9.9e-05,2]
[347911915,1736196632400,-1000.0,9.9e-05,2]
[347911916,1736196632410,-1000.0,9.9e-05,2]
[347911918,1736196632420,-1000.0,9.9e-05,2]
[347911920,1736196632430,-1000.0,9.9e-05,2]
[347911922,1736196632439,-1000.0,9.9e-05,2]
[347911923,1736196632449,-1003.0,9.9e-05,2]
[347911926,1736196632458,-489.0,9.9e-05,2]
[347911928,1736196632468,-1000.0,9.9e-05,2]
[347911929,1736196632478,-1002.0,9.9e-05,2]
[347911931,1736196632488,-166.76,9.912e-05,2]
[347911933,1736196632497,-175.37,9.927e-05,2]
[347911935,1736196632507,-151.74547533,9.966e-05,2]
[347911937,1736196632516,-1384.3592,9.973e-05,2]
[347911939,1736196632526,-159.77528129,9.973e-05,2]
[347911940,1736196632535,-519.2101584,9.973e-05,2]
[347911941,1736196632546,-500.0,9.973e-05,2]
[347911942,1736196632556,-436.0,9.99e-05,2]
[347911943,1736196632566,-240.041,9.99e-05,2]
[347911944,1736196632576,-4367.188,9.99e-05,2]
[347911946,1736196632586,-500.0,9.999e-05,2]
[347911948,1736196632595,-230.122787,9.999e-05,2]
[347911950,1736196632605,-250.74175,9.999e-05,2]
[347911952,1736196632615,-500.0,9.999e-05,2]
[347911954,1736196632624,-187.35127176,9.999e-05,2]
[347911956,1736196632634,-500.0,9.999e-05,2]
[347911958,1736196632643,-500.0,9.999e-05,2]
[347911960,1736196632654,-500.0,9.999e-05,2]
[347911962,1736196632663,-500.0,9.999e-05,2]
[347911964,1736196632673,-425.99,9.999e-05,2]
[347911966,1736196632682,-500.0,9.999e-05,2]
[347911968,1736196632692,-1318.81,9.999e-05,2]
[347911970,1736196632702,-500.0,9.999e-05,2]
[347911972,1736196632712,-500.0,9.999e-05,2]
[347911974,1736196632722,-500.0,9.999e-05,2]
[347911976,1736196632732,-500.0,9.999e-05,2]
[347911978,1736196632742,-434.4,9.999e-05,2]
[347911980,1736196632751,-748.71,9.999e-05,2]
[347911982,1736196632761,-500.0,9.999e-05,2]
[347911984,1736196632770,-1399.67,9.999e-05,2]
[347911986,1736196632780,-500.0,9.999e-05,2]
[347911988,1736196632789,-500.0,9.999e-05,2]
[347911990,1736196632799,-531.37,9.999e-05,2]
[347911991,1736196632810,-604.16,9.999e-05,2]
[347911992,1736196632819,-500.0,9.999e-05,2]
[347911993,1736196632828,-614.06,9.999e-05,2]
[347911994,1736196632837,-500.0,9.999e-05,2]
[347911995,1736196632846,-588.47,9.999e-05,2]
[347911996,1736196632855,-1043.87,9.999e-05,2]
[347911997,1736196632865,-500.0,9.999e-05,2]
[347911998,1736196632875,-500.0,9.999e-05,2]
[347911999,1736196632885,-500.0,9.999e-05,2]
[347912000,1736196632896,-717.92,9.999e-05,2]
[347912001,1736196632907,-944.83,9.999e-05,2]
[347912002,1736196632917,-500.0,9.999e-05,2]
[347912003,1736196632928,-500.0,9.999e-05,2]
[347912004,1736196632938,-500.0,9.999e-05,2]
[347912005,1736196632949,-500.0,9.999e-05,2]
[347912006,1736196632958,-500.0,9.999e-05,2]
[347912007,1736196632968,-500.0,9.999e-05,2]
[347912008,1736196632978,-815.25,9.999e-05,2]
[347912010,1736196632988,-500.0,9.999e-05,2]
[347912012,1736196632997,-500.0,9.999e-05,2]
[347912014,1736196633007,-533.93,9.999e-05,2]
[347912015,1736196633016,-500.0,9.999e-05,2]
[347912017,1736196633028,-500.0,9.999e-05,2]
[347912018,1736196633039,-500.0,9.999e-05,2]
[347912019,1736196633049,-500.0,9.999e-05,2]
[347912020,1736196633059,-500.0,9.999e-05,2]
[347912021,1736196633069,-1363485.03879851,0.0001,2]
[347912023,1736196637809,-377.00360072,9.9e-05,2]
[347912024,1736196637864,-416.3300127,9.9e-05,2]
[347912025,1736196637975,-4206.66638658,9.9e-05,2]
[347912026,1736196637985,-344629.58757026,0.0001,2]
[347912027,1736196637996,-831510.77643889,0.0001,2]
[347912190,1736196639812,-18042.53485815,0.0001,2]
[347912221,1736196640086,-2004.69357214,0.0001,2]
[347912223,1736196640097,-342.38583115,0.0001,2]
[347912226,1736196640109,-342.89261828,0.0001,2]
[347912228,1736196640121,-1421.05,0.0001,2]
[347912233,1736196640157,-1693.83655973,0.0001,2]
[347912336,1736196641117,-321.180467,0.0001,2]
[347912338,1736196641129,-404.35089913,0.0001,2]
[347912344,1736196641177,-3318.96264027,0.0001,2]
[347912346,1736196641189,-419.79,0.0001,2]
[347912509,1736196642792,-500.0,9.999e-05,2]
[347912512,1736196642802,-102.7229998,0.0001,2]
[347912520,1736196642853,-31686.48570744,0.0001,2]
[347912532,1736196642958,-1959469.67455381,0.0001,2]
[347912534,1736196642967,-2000.0,0.0001,2]
[347912536,1736196642976,-200.0,0.0001,2]
[347912538,1736196642985,-3000.0,0.0001,2]
[347912540,1736196642994,-2648.64287755,0.0001,2]
[347912542,1736196643003,-150.77013511,0.0001,2]
[347912544,1736196643012,-151.74547538,0.0001,2]
[347912546,1736196643021,-151.74547533,0.0001,2]
[347912548,1736196643031,-151.74547533,0.0001,2]
[347912550,1736196643044,-151.74547533,0.0001,2]
[347912552,1736196643054,-151.74547533,0.0001,2]
[347912554,1736196643063,-151.74547533,0.0001,2]
[347912556,1736196643073,-151.74547533,0.00010093,2]
[347912558,1736196643081,-654.70216282,0.000101,2]
[347912560,1736196643091,-200.0,0.000101,2]
[347912562,1736196643100,-500.0,0.00010136,2]
[347912564,1736196643109,-390.42,0.00010137,2]
[347912566,1736196643118,-163.45,0.00010137,2]
[347912568,1736196643128,-242.0,0.0001015,2]
[347912570,1736196643137,-436.0,0.0001015,2]
[347912572,1736196643147,-1000.0,0.00010212,2]
[347912574,1736196643156,-151.74547533,0.00010221,2]
[347912576,1736196643166,-189.94,0.00010222,2]
[347912578,1736196643175,-500.0,0.00010273,2]
[347912580,1736196643184,-230.122787,0.00010273,2]
[347912582,1736196643194,-250.74175,0.00010273,2]
[347912584,1736196643203,-500.0,0.00010273,2]
[347912586,1736196643212,-500.0,0.00010273,2]
[347912588,1736196643221,-500.0,0.00010273,2]
[347912590,1736196643232,-500.0,0.00010273,2]
[347912592,1736196643243,-1318.81,0.00010273,2]
[347912594,1736196643252,-500.0,0.00010273,2]
[347912596,1736196643262,-500.0,0.00010273,2]
[347912598,1736196643271,-748.71,0.00010273,2]
[347912600,1736196643280,-500.0,0.00010273,2]
[347912602,1736196643289,-1399.67,0.00010273,2]
[347912604,1736196643299,-500.0,0.00010273,2]
[347912606,1736196643308,-500.0,0.00010273,2]
[347912608,1736196643317,-531.37,0.00010273,2]
[347912610,1736196643326,-604.16,0.00010273,2]
[347912612,1736196643335,-614.06,0.00010273,2]
[347912614,1736196643345,-500.0,0.00010273,2]
[347912616,1736196643354,-588.47,0.00010273,2]
[347912618,1736196643363,-1043.87,0.00010273,2]
[347912620,1736196643372,-500.0,0.00010273,2]
[347912622,1736196643381,-500.0,0.00010273,2]
[347912624,1736196643390,-500.0,0.00010273,2]
[347912626,1736196643399,-717.92,0.00010273,2]
[347912628,1736196643409,-944.83,0.00010273,2]
[347912630,1736196643418,-500.0,0.00010273,2]
[347912632,1736196643427,-563.53,0.00010273,2]
[347912634,1736196643437,-278.03190806,0.00010273,2]
[347912636,1736196643447,-500.0,0.00010273,2]
[347912638,1736196643456,-500.0,0.00010273,2]
[347912640,1736196643465,-815.25,0.00010273,2]
[347912642,1736196643475,-500.0,0.00010273,2]
[347912644,1736196643484,-500.0,0.00010273,2]
[347912646,1736196643493,-533.93,0.00010273,2]
[347912648,1736196643502,-500.0,0.00010273,2]
[347912650,1736196643511,-500.0,0.00010273,2]
[347912652,1736196643520,-500.0,0.00010273,2]
[347912654,1736196643529,-500.0,0.00010273,2]
[347912656,1736196643539,-500.0,0.00010273,2]
[347912658,1736196643548,-7062.9603479,0.00010275,2]
[347912660,1736196643557,-242.0,0.0001031,2]
[347912662,1736196643567,-436.0,0.0001031,2]
[347912664,1736196643575,-150.0,0.00010312,2]
[347912666,1736196643584,-150.0,0.00010347,2]
[347912668,1736196643593,-151.74547533,0.00010348,2]
[347912670,1736196643603,-150.0,0.00010366,2]
[347912672,1736196643612,-634.0,0.00010437,2]
[347912674,1736196643621,-566.0,0.00010437,2]
[347912676,1736196643630,-489.411,0.00010437,2]
[347912678,1736196643639,-524.429,0.00010437,2]
[347912680,1736196643648,-150.0,0.00010437,2]
[347912682,1736196643659,-3894.0,0.00010437,2]
[347912684,1736196643668,-9617.0,0.00010437,2]
[347912686,1736196643677,-1173.0,0.00010437,2]
[347912688,1736196643686,-467.05,0.00010437,2]
[347912690,1736196643695,-150.0,0.00010452,2]
[347912692,1736196643704,-242.0,0.0001047,2]
[347912694,1736196643713,-436.0,0.0001047,2]
[347912696,1736196643723,-1093.75,0.00010472,2]
[347912698,1736196643732,-151.74547533,0.00010476,2]
[347912700,1736196643741,-150.0,0.00010509,2]
[347912702,1736196643750,-171.56,0.00010522,2]
[347912704,1736196643759,-500.0,0.00010547,2]
[347912706,1736196643768,-230.122787,0.00010547,2]
[347912708,1736196643777,-250.74175,0.00010547,2]
[347912710,1736196643786,-500.0,0.00010547,2]
[347912712,1736196643796,-500.0,0.00010547,2]
[347912714,1736196643805,-500.0,0.00010547,2]
[347912716,1736196643814,-1318.81,0.00010547,2]
[347912718,1736196643823,-500.0,0.00010547,2]
[347912720,1736196643832,-500.0,0.00010547,2]
[347912722,1736196643841,-748.71,0.00010547,2]
[347912724,1736196643850,-1399.67,0.00010547,2]
[347912726,1736196643859,-500.0,0.00010547,2]
[347912728,1736196643869,-500.0,0.00010547,2]
[347912730,1736196643879,-500.0,0.00010547,2]
[347912732,1736196643888,-531.37,0.00010547,2]
[347912734,1736196643898,-604.16,0.00010547,2]
[347912736,1736196643908,-614.06,0.00010547,2]
[347912738,1736196643917,-539.13963078,0.00010547,2]
[347912740,1736196643926,-588.47,0.00010547,2]
[347912742,1736196643935,-1043.87,0.00010547,2]
[347912744,1736196643944,-500.0,0.00010547,2]
[347912746,1736196643953,-500.0,0.00010547,2]
[347912748,1736196643963,-500.0,0.00010547,2]
[347912750,1736196643972,-717.92,0.00010547,2]
[347912752,1736196643981,-944.83,0.00010547,2]
[347912754,1736196643990,-500.0,0.00010547,2]
[347912756,1736196643999,-500.0,0.00010547,2]
[347912758,1736196644008,-500.0,0.00010547,2]
[347912760,1736196644017,-815.25,0.00010547,2]
[347912762,1736196644027,-500.0,0.00010547,2]
[347912764,1736196644041,-533.93,0.00010547,2]
[347912765,1736196644050,-500.0,0.00010547,2]
[347912768,1736196644060,-500.0,0.00010547,2]
[347912769,1736196644070,-500.0,0.00010547,2]
[347912771,1736196644079,-500.0,0.00010547,2]
[347912774,1736196644088,-500.0,0.00010547,2]
[347912776,1736196644099,-150.0,0.00010589,2]
[347912777,1736196644110,-151.74547533,0.00010603,2]
[347912779,1736196644118,-242.0,0.0001063,2]
[347912781,1736196644127,-436.0,0.0001063,2]
[347912783,1736196644136,-536.0,0.00010667,2]
[347912785,1736196644145,-151.74547533,0.00010731,2]
[347912787,1736196644154,-242.0,0.0001078,2]
[347912789,1736196644164,-436.0,0.0001078,2]
[347912791,1736196644173,-500.0,0.00010821,2]
[347912793,1736196644182,-500.0,0.00010821,2]
[347912795,1736196644191,-500.0,0.00010821,2]
[347912797,1736196644201,-500.0,0.00010821,2]
[347912799,1736196644210,-1318.81,0.00010821,2]
[347912801,1736196644220,-500.0,0.00010821,2]
[347912803,1736196644230,-500.0,0.00010821,2]
[347912805,1736196644240,-748.71,0.00010821,2]
[347912807,1736196644249,-1399.67,0.00010821,2]
[347912809,1736196644259,-500.0,0.00010821,2]
[347912811,1736196644268,-500.0,0.00010821,2]
[347912813,1736196644277,-500.0,0.00010821,2]
[347912815,1736196644286,-531.37,0.00010821,2]
[347912817,1736196644295,-604.16,0.00010821,2]
[347912819,1736196644304,-614.06,0.00010821,2]
[347912821,1736196644314,-588.47,0.00010821,2]
[347912823,1736196644323,-1043.87,0.00010821,2]
[347912825,1736196644333,-500.0,0.00010821,2]
[347912827,1736196644342,-500.0,0.00010821,2]
[347912829,1736196644351,-500.0,0.00010821,2]
[347912832,1736196644361,-717.92,0.00010821,2]
[347912833,1736196644371,-944.83,0.00010821,2]
[347912835,1736196644380,-500.0,0.00010821,2]
[347912838,1736196644389,-500.0,0.00010821,2]
[347912840,1736196644398,-500.0,0.00010821,2]
[347912842,1736196644407,-815.25,0.00010821,2]
[347912843,1736196644418,-500.0,0.00010821,2]
[347912846,1736196644428,-533.93,0.00010821,2]
[347912847,1736196644438,-500.0,0.00010821,2]
[347912850,1736196644447,-283.68,0.00010821,2]
[347912851,1736196644456,-500.0,0.00010821,2]
[347912853,1736196644465,-500.0,0.00010821,2]
[347912855,1736196644474,-150.0,0.00010837,2]
[347912857,1736196644483,-151.74547533,0.00010859,2]
[347912859,1736196644493,-159.10043696,0.000109,2]
[347912861,1736196644502,-242.0,0.0001094,2]
[347912863,1736196644511,-436.0,0.0001094,2]
[347912865,1736196644519,-150.0,0.00010959,2]
[347912867,1736196644529,-151.74547533,0.00010986,2]
[347912869,1736196644538,-400.0,0.00010986,2]
[347912871,1736196644547,-550.0,0.00011,2]
[347912873,1736196644556,-1000.0,0.00011,2]
[347912875,1736196644565,-150.0,0.00011001,2]
[347912877,1736196644574,-150.0,0.00011007,2]
[347912879,1736196644583,-2648.64287755,0.0001105,2]
[347912881,1736196644592,-150.0,0.00011094,2]
[347912883,1736196644601,-500.0,0.00011095,2]
[347912885,1736196644611,-588.38803462,0.00011095,2]
[347912887,1736196644620,-500.0,0.00011095,2]
[347912889,1736196644630,-500.0,0.00011095,2]
[347912891,1736196644639,-1318.81,0.00011095,2]
[347912893,1736196644649,-500.0,0.00011095,2]
[347912895,1736196644657,-500.0,0.00011095,2]
[347912897,1736196644667,-748.71,0.00011095,2]
[347912899,1736196644676,-1399.67,0.00011095,2]
[347912901,1736196644685,-500.0,0.00011095,2]
[347912903,1736196644694,-613.43,0.00011095,2]
[347912905,1736196644703,-500.0,0.00011095,2]
[347912906,1736196644712,-531.37,0.00011095,2]
[347912907,1736196644721,-604.16,0.00011095,2]
[347912908,1736196644730,-588.47,0.00011095,2]
[347912909,1736196644739,-1043.87,0.00011095,2]
[347912910,1736196644748,-500.0,0.00011095,2]
[347912911,1736196644758,-500.0,0.00011095,2]
[347912912,1736196644767,-500.0,0.00011095,2]
[347912913,1736196644776,-717.92,0.00011095,2]
[347912914,1736196644785,-944.83,0.00011095,2]
[347912915,1736196644794,-500.0,0.00011095,2]
[347912916,1736196644803,-500.0,0.00011095,2]
[347912917,1736196644812,-500.0,0.00011095,2]
[347912919,1736196644821,-815.25,0.00011095,2]
[347912921,1736196644830,-500.0,0.00011095,2]
[347912923,1736196644839,-533.93,0.00011095,2]
[347912925,1736196644848,-368.30004044,0.00011095,2]
[347912927,1736196644857,-500.0,0.00011095,2]
[347912929,1736196644867,-500.0,0.00011095,2]
[347912930,1736196644876,-242.0,0.000111,2]
[347912932,1736196644885,-436.0,0.000111,2]
[347912934,1736196644894,-150.0,0.00011104,2]
[347912936,1736196644904,-151.74547533,0.00011114,2]
[347912938,1736196644913,-151.74547533,0.00011241,2]
[347912940,1736196644922,-242.0,0.0001126,2]
[347912942,1736196644931,-436.0,0.0001126,2]
[347912944,1736196644940,-1821.91,0.00011281,2]
[347912946,1736196644949,-2225.38,0.00011281,2]
[347912948,1736196644959,-999.99,0.00011281,2]
[347912950,1736196644968,-150.99,0.00011281,2]
[347912952,1736196644977,-2618.44,0.00011281,2]
[347912954,1736196644986,-150.99,0.00011281,2]
[347912956,1736196644995,-299.99,0.00011281,2]
[347912958,1736196645004,-63710.56,0.00011281,2]
[347912960,1736196645014,-150.0,0.00011302,2]
[347912963,1736196645024,-150.0,0.0001131,2]
[347912965,1736196645035,-1000.0,0.00011346,2]
[347912967,1736196645044,-189.94,0.00011358,2]
[347912969,1736196645053,-151.74547533,0.00011369,2]
[347912971,1736196645062,-500.0,0.00011369,2]
[347912973,1736196645071,-500.0,0.00011369,2]
[347912975,1736196645081,-500.0,0.00011369,2]
[347912977,1736196645090,-1318.81,0.00011369,2]
[347912979,1736196645099,-500.0,0.00011369,2]
[347912981,1736196645108,-500.0,0.00011369,2]
[347912983,1736196645117,-748.71,0.00011369,2]
[347912985,1736196645128,-1399.67,0.00011369,2]
[347912987,1736196645138,-500.0,0.00011369,2]
[347912989,1736196645147,-500.0,0.00011369,2]
[347912991,1736196645155,-531.37,0.00011369,2]
[347912993,1736196645165,-604.16,0.00011369,2]
[347912995,1736196645174,-588.47,0.00011369,2]
[347912997,1736196645183,-1043.87,0.00011369,2]
[347912999,1736196645192,-500.0,0.00011369,2]
[347913001,1736196645202,-500.0,0.00011369,2]
[347913003,1736196645210,-500.0,0.00011369,2]
[347913005,1736196645220,-458.33002988,0.00011369,2]
[347913028,1736196645432,-259.58997012,0.00011369,2]
[347913030,1736196645442,-308.43212989,0.00011369,2]
[347913033,1736196645456,-636.39787011,0.00011369,2]
[347913035,1736196645465,-500.0,0.00011369,2]
[347913037,1736196645475,-500.0,0.00011369,2]
[347913039,1736196645485,-98.60212989,0.00011369,2]
[347913041,1736196645496,-401.39787011,0.00011369,2]
[347913043,1736196645506,-815.25,0.00011369,2]
[347913045,1736196645515,-500.0,0.00011369,2]
[347913047,1736196645524,-533.93,0.00011369,2]
[347913049,1736196645533,-500.0,0.00011369,2]
[347913051,1736196645543,-391.0762948,0.00011369,2]
[347913053,1736196645552,-242.0,0.0001142,2]
[347913055,1736196645561,-436.0,0.0001142,2]
[347913057,1736196645570,-150.0,0.00011426,2]
[347913059,1736196645579,-150.0,0.00011453,2]
[347913061,1736196645589,-1000.0,0.0001147,2]
[347913063,1736196645597,-151.74547533,0.00011497,2]
[347913065,1736196645606,-150.0,0.00011529,2]
[347913067,1736196645616,-150.40249174,0.00011544,2]
[347913069,1736196645625,-166.76,0.00011565,2]
[347913071,1736196645634,-150.0,0.00011579,2]
[347913073,1736196645643,-242.0,0.0001158,2]
[347913075,1736196645652,-436.0,0.0001158,2]
[347913077,1736196645662,-151.74547533,0.00011624,2]
[347913079,1736196645672,-500.0,0.00011643,2]
[347913081,1736196645681,-500.0,0.00011643,2]